[Event "Nové Hrady - Rapid A"]
[Site "Nové Hrady, Czech Republic"]
[Date "2023.08.12"]
[Round "6.3"]
[White "Urban, Zdeněk"]
[Black "Garabik, Marek"]
[Result "1-0"]
[TimeControl "2x20min+5s"]
[WhiteFideId "312754"]
[BlackFideId "23717742"]
[WhiteElo "2048"]
[BlackElo "1767"]

1. d4 {[%clk 00:20:05]} {[%emt 00:02:33]} d5 {[%clk 00:20:05]} {[%emt
00:00:02]} 2. c4 {[%clk 00:20:05]} {[%emt 00:00:03]} e6 {[%clk 00:20:05]}
{[%emt 00:00:02]} 3. Nc3 {[%clk 00:20:05]} {[%emt 00:00:02]} Nf6 {[%clk
00:20:05]} {[%emt 00:00:02]} 4. Nf3 {[%clk 00:19:59]} {[%emt 00:00:11]} c6
{[%clk 00:20:03]} {[%emt 00:00:08]} 5. e3 {[%clk 00:19:59]} {[%emt 00:00:05]}
Be7 {[%clk 00:20:03]} {[%emt 00:00:03]} 6. Bd3 {[%clk 00:19:45]} {[%emt
00:00:19]} O-O {[%clk 00:20:03]} {[%emt 00:00:04]} 7. Bd2 {[%clk 00:19:04]}
{[%emt 00:00:45]} Nbd7 {[%clk 00:20:03]} {[%emt 00:00:03]} 8. O-O {[%clk
00:18:36]} {[%emt 00:00:31]} b6 {[%clk 00:20:03]} {[%emt 00:00:05]} 9. Rc1
{[%clk 00:18:16]} {[%emt 00:00:25]} Bb7 {[%clk 00:19:59]} {[%emt 00:00:10]} 10.
cxd5 {[%clk 00:17:47]} {[%emt 00:00:33]} exd5 {[%clk 00:19:58]} {[%emt
00:00:06]} 11. Ne5 {[%clk 00:17:26]} {[%emt 00:00:26]} c5 {[%clk 00:19:21]}
{[%emt 00:00:42]} 12. f4 {[%clk 00:17:26]} {[%emt 00:00:04]} cxd4 {[%clk
00:18:44]} {[%emt 00:00:42]} 13. exd4 {[%clk 00:17:26]} {[%emt 00:00:04]} Ne4
{[%clk 00:18:24]} {[%emt 00:00:25]} 14. Nxe4 {[%clk 00:17:20]} {[%emt
00:00:10]} dxe4 {[%clk 00:18:24]} 15. Bc4 {[%clk 00:16:35]} {[%emt 00:00:52]}
Rc8 {[%clk 00:17:51]} {[%emt 00:00:39]} 16. Be3 {[%clk 00:16:22]} {[%emt
00:00:16]} a6 {[%clk 00:17:23]} {[%emt 00:00:35]} 17. Qb3 {[%clk 00:16:04]}
{[%emt 00:00:22]} Nxe5 {[%clk 00:15:53]} {[%emt 00:01:35]} 18. fxe5 {[%clk
00:16:04]} {[%emt 00:00:04]} Rxc4 {[%clk 00:15:47]} {[%emt 00:00:12]} 19. Qxc4
{[%clk 00:15:58]} {[%emt 00:00:11]} b5 {[%clk 00:14:52]} {[%emt 00:01:00]} 20.
Qc7 {[%clk 00:15:53]} {[%emt 00:00:10]} Bd5 {[%clk 00:14:43]} {[%emt 00:00:15]}
21. Qxd8 {[%clk 00:15:52]} {[%emt 00:00:05]} Bxd8 {[%clk 00:14:43]} {[%emt
00:00:02]} 22. b3 {[%clk 00:14:34]} {[%emt 00:01:24]} Bb6 {[%clk 00:14:33]}
{[%emt 00:00:15]} 23. Rc2 {[%clk 00:14:33]} {[%emt 00:00:05]} Rd8 {[%clk
00:14:23]} {[%emt 00:00:14]} 24. Rd1 {[%clk 00:14:03]} {[%emt 00:00:35]} a5
{[%clk 00:13:31]} {[%emt 00:00:58]} 25. Rdc1 {[%clk 00:13:15]} {[%emt
00:00:53]} Bb7 {[%clk 00:13:10]} {[%emt 00:00:26]} 26. Kf2 {[%clk 00:13:02]}
{[%emt 00:00:18]} h6 {[%clk 00:13:10]} {[%emt 00:00:05]} 27. Rd2 {[%clk
00:12:59]} {[%emt 00:00:09]} b4 {[%clk 00:13:05]} {[%emt 00:00:10]} 28. Rc4
{[%clk 00:12:54]} {[%emt 00:00:10]} Kf8 {[%clk 00:12:58]} {[%emt 00:00:11]} 29.
Rdc2 {[%clk 00:12:29]} {[%emt 00:00:30]} Ke7 {[%clk 00:12:07]} {[%emt
00:00:57]} 30. g4 {[%clk 00:12:29]} {[%emt 00:00:04]} Ba6 {[%clk 00:11:51]}
{[%emt 00:00:22]} 31. Kg3 {[%clk 00:08:51]} {[%emt 00:03:43]} Bxc4 {[%clk
00:11:22]} {[%emt 00:00:33]} 32. Rxc4 {[%clk 00:08:51]} {[%emt 00:00:03]} g5
{[%clk 00:10:46]} {[%emt 00:00:42]} 33. h4 {[%clk 00:08:51]} {[%emt 00:00:02]}
gxh4+ {[%clk 00:10:08]} {[%emt 00:00:44]} 34. Kxh4 {[%clk 00:08:51]} {[%emt
00:00:02]} Rd7 {[%clk 00:09:51]} {[%emt 00:00:21]} 35. Kh5 {[%clk 00:08:41]}
{[%emt 00:00:15]} Bc7 {[%clk 00:09:38]} {[%emt 00:00:18]} 36. Kxh6 {[%clk
00:07:55]} {[%emt 00:00:50]} f6 {[%clk 00:09:03]} {[%emt 00:00:48]} 37. exf6+
{[%clk 00:07:55]} {[%emt 00:00:01]} Kxf6 {[%clk 00:09:03]} 38. g5+ {[%clk
00:07:55]} {[%emt 00:00:01]} Kf5 {[%clk 00:08:44]} {[%emt 00:00:25]} 39. g6
{[%clk 00:07:54]} {[%emt 00:00:05]} Rd6 {[%clk 00:07:30]} {[%emt 00:01:20]} 40.
Rc5+ {[%clk 00:07:49]} {[%emt 00:00:09]} Kg4 {[%clk 00:07:26]} {[%emt
00:00:09]} 41. Rxc7 {[%clk 00:07:49]} {[%emt 00:00:04]} 1-0

[Event "Nové Hrady - Rapid A"]
[Site "Nové Hrady, Czech Republic"]
[Date "2023.08.12"]
[Round "6.4"]
[White "Steinbauer, Sebastián"]
[Black "Prinz, Hubert"]
[Result "1-0"]
[TimeControl "2x20min+5s"]
[WhiteFideId "399272"]
[BlackFideId "1639447"]
[WhiteElo "1833"]
[BlackElo "2038"]

1. e4 {[%clk 00:20:08]} {[%emt 00:00:02]} d5 {[%clk 00:20:10]} 2. exd5 {[%clk
00:20:11]} Qxd5 {[%clk 00:20:14]} 3. d4 {[%clk 00:20:15]} Nf6 {[%clk 00:20:17]}
{[%emt 00:00:05]} 4. Nc3 {[%clk 00:20:19]} {[%emt 00:00:02]} Qd6 {[%clk
00:20:20]} 5. Nf3 {[%emt 00:00:04]} a6 6. Bc4 {[%clk 00:20:19]} {[%emt
00:00:07]} b5 {[%clk 00:20:29]} 7. Bb3 {[%clk 00:20:18]} {[%emt 00:00:06]} Bb7
{[%clk 00:20:31]} {[%emt 00:00:04]} 8. O-O {[%clk 00:20:09]} {[%emt 00:00:13]}
e6 {[%clk 00:20:34]} {[%emt 00:00:02]} 9. Re1 {[%clk 00:19:49]} {[%emt
00:00:24]} c5 {[%clk 00:20:29]} {[%emt 00:00:17]} 10. dxc5 {[%clk 00:19:46]}
{[%emt 00:00:02]} Qxd1 {[%clk 00:20:32]} {[%emt 00:00:02]} 11. Rxd1 {[%clk
00:19:38]} {[%emt 00:00:13]} Bxf3 {[%clk 00:20:21]} {[%emt 00:00:16]} 12. gxf3
{[%clk 00:19:41]} Bxc5 {[%clk 00:20:24]} {[%emt 00:00:04]} 13. Bg5 {[%clk
00:19:42]} {[%emt 00:00:04]} Nbd7 {[%clk 00:20:20]} {[%emt 00:00:08]} 14. Ne4
{[%clk 00:19:37]} {[%emt 00:00:11]} Be7 {[%clk 00:20:08]} {[%emt 00:00:17]} 15.
Nd6+ {[%clk 00:19:28]} {[%emt 00:00:15]} Bxd6 {[%clk 00:20:07]} {[%emt
00:00:05]} 16. Rxd6 {[%clk 00:19:27]} {[%emt 00:00:06]} O-O {[%clk 00:19:14]}
{[%emt 00:00:59]} 17. Rad1 {[%clk 00:19:22]} {[%emt 00:00:09]} h6 {[%clk
00:19:13]} {[%emt 00:00:05]} 18. Bh4 {[%clk 00:19:15]} {[%emt 00:00:13]} g5
{[%clk 00:19:03]} {[%emt 00:00:15]} 19. Bg3 {[%clk 00:19:19]} Nc5 {[%clk
00:18:55]} {[%emt 00:00:14]} 20. Be5 {[%clk 00:18:45]} {[%emt 00:00:39]} Ne8
{[%clk 00:17:26]} {[%emt 00:01:35]} 21. Rc6 {[%clk 00:18:43]} {[%emt 00:00:06]}
Nxb3 {[%clk 00:17:24]} {[%emt 00:00:08]} 22. cxb3 {[%clk 00:18:46]} Ng7 {[%clk
00:17:23]} {[%emt 00:00:06]} 23. f4 {[%clk 00:18:41]} {[%emt 00:00:11]} f6
{[%clk 00:16:10]} {[%emt 00:01:18]} 24. Bc3 {[%clk 00:18:17]} {[%emt 00:00:28]}
gxf4 {[%clk 00:15:49]} {[%emt 00:00:26]} 25. Rdd6 {[%clk 00:18:18]} {[%emt
00:00:04]} a5 {[%clk 00:15:27]} {[%emt 00:00:27]} 26. a3 {[%clk 00:17:48]}
{[%emt 00:00:35]} f3 {[%clk 00:15:16]} {[%emt 00:00:16]} 27. Rd3 {[%clk
00:17:41]} {[%emt 00:00:12]} b4 {[%clk 00:15:17]} {[%emt 00:00:04]} 28. Be1
{[%clk 00:15:29]} {[%emt 00:02:17]} Rfe8 {[%clk 00:13:39]} {[%emt 00:01:43]} 29.
Rxf3 {[%clk 00:15:21]} {[%emt 00:00:13]} Kf7 {[%clk 00:13:32]} {[%emt
00:00:12]} 30. axb4 {[%clk 00:15:07]} {[%emt 00:00:19]} axb4 {[%clk 00:13:36]}
31. Bxb4 {[%clk 00:15:09]} {[%emt 00:00:03]} Ra1+ {[%clk 00:13:37]} {[%emt
00:00:05]} 32. Kg2 {[%clk 00:15:13]} Nf5 {[%clk 00:13:41]} {[%emt 00:00:03]} 33.
Rc7+ {[%clk 00:15:11]} {[%emt 00:00:06]} Kg6 {[%clk 00:13:44]} {[%emt
00:00:01]} 34. Rc4 {[%clk 00:12:31]} {[%emt 00:02:46]} h5 {[%clk 00:13:41]}
{[%emt 00:00:08]} 35. Rfc3 {[%clk 00:11:18]} {[%emt 00:01:18]} Rb1 {[%clk
00:11:59]} {[%emt 00:01:47]} 36. Ba3 {[%clk 00:11:05]} {[%emt 00:00:18]} Rd8
{[%clk 00:12:02]} {[%emt 00:00:02]} 37. Rc1 {[%emt 00:01:02]} Rxc1 {[%clk
00:10:58]} {[%emt 00:00:17]} 38. Rxc1 {[%clk 00:11:04]} Rd3 {[%clk 00:11:02]}
39. Rc3 {[%clk 00:10:23]} {[%emt 00:00:48]} Rd2 {[%clk 00:10:09]} {[%emt
00:00:57]} 40. b4 {[%clk 00:09:33]} {[%emt 00:00:54]} e5 {[%clk 00:10:10]}
{[%emt 00:00:05]} 41. b5 {[%clk 00:09:35]} {[%emt 00:00:04]} Rd7 {[%clk
00:09:15]} {[%emt 00:00:58]} 42. b6 {[%clk 00:09:22]} {[%emt 00:00:19]} Rb7
{[%clk 00:09:10]} {[%emt 00:00:11]} 43. Bc5 {[%clk 00:09:24]} {[%emt 00:00:03]}
Nd4 {[%clk 00:09:00]} {[%emt 00:00:14]} 44. Ra3 {[%clk 00:07:55]} {[%emt
00:01:34]} Ne6 {[%clk 00:08:34]} {[%emt 00:00:31]} 45. b4 {[%clk 00:07:56]}
{[%emt 00:00:04]} Kf7 {[%clk 00:08:13]} {[%emt 00:00:26]} 46. Ra7 {[%clk
00:07:02]} {[%emt 00:01:00]} Nd8 {[%clk 00:08:17]} 47. Bd6 {[%clk 00:06:47]}
{[%emt 00:00:20]} Ke6 {[%clk 00:07:40]} {[%emt 00:00:41]} 48. Bc7 {[%clk
00:06:51]} {[%emt 00:00:02]} Kd7 {[%clk 00:05:59]} {[%emt 00:01:46]} 49. Bxd8
{[%clk 00:06:47]} {[%emt 00:00:08]} Kc6 {[%clk 00:06:03]} 50. Rxb7 {[%clk
00:06:49]} {[%emt 00:00:04]} Kxb7 {[%clk 00:06:07]} {[%emt 00:00:02]} 51. Bxf6
{[%clk 00:06:52]} {[%emt 00:00:02]} 1-0

[Event "Nové Hrady - Rapid A"]
[Site "Nové Hrady, Czech Republic"]
[Date "2023.08.12"]
[Round "6.5"]
[White "Drda, Štěpán"]
[Black "Šlechta, Adam"]
[Result "0-1"]
[TimeControl "2x20min+5s"]
[WhiteFideId "23731567"]
[BlackFideId "23734450"]
[WhiteElo "1582"]
[BlackElo "1409"]

1. c4 {[%clk 00:20:09]} g6 {[%clk 00:20:06]} {[%emt 00:00:05]} 2. Nc3 {[%emt
00:00:03]} Bg7 3. g3 {[%clk 00:20:14]} {[%emt 00:00:02]} Nf6 {[%clk 00:20:10]}
{[%emt 00:00:04]} 4. Bg2 {[%clk 00:20:17]} d6 {[%clk 00:20:14]} {[%emt
00:00:04]} 5. Nf3 {[%clk 00:20:18]} {[%emt 00:00:03]} O-O {[%clk 00:20:15]}
{[%emt 00:00:04]} 6. O-O {[%clk 00:20:20]} {[%emt 00:00:03]} a6 {[%clk
00:20:13]} {[%emt 00:00:07]} 7. d3 {[%clk 00:20:17]} {[%emt 00:00:08]} c5
{[%clk 00:20:16]} {[%emt 00:00:03]} 8. Rb1 {[%clk 00:20:16]} {[%emt 00:00:05]}
Nc6 {[%clk 00:20:07]} {[%emt 00:00:15]} 9. a3 {[%clk 00:20:16]} {[%emt
00:00:04]} Rb8 {[%clk 00:19:41]} {[%emt 00:00:31]} 10. b4 {[%clk 00:19:45]}
{[%emt 00:00:34]} Nd7 {[%clk 00:19:23]} {[%emt 00:00:25]} 11. bxc5 {[%clk
00:19:40]} {[%emt 00:00:10]} Bxc3 {[%clk 00:19:19]} {[%emt 00:00:08]} 12. Qc2
{[%clk 00:19:04]} {[%emt 00:00:42]} Bg7 {[%clk 00:19:17]} {[%emt 00:00:08]} 13.
Be3 {[%clk 00:18:28]} {[%emt 00:00:40]} Nxc5 {[%clk 00:19:11]} {[%emt
00:00:11]} 14. Nd2 {[%clk 00:18:20]} {[%emt 00:00:13]} Qc7 {[%clk 00:18:47]}
{[%emt 00:00:30]} 15. Nb3 {[%clk 00:17:47]} {[%emt 00:00:37]} Nxb3 {[%clk
00:18:50]} 16. Qxb3 {[%clk 00:17:45]} {[%emt 00:00:09]} b5 {[%clk 00:18:36]}
{[%emt 00:00:20]} 17. Rfc1 {[%clk 00:17:26]} {[%emt 00:00:24]} Na5 {[%clk
00:18:14]} {[%emt 00:00:27]} 18. Qb4 {[%clk 00:15:20]} {[%emt 00:02:10]} Nc6
{[%clk 00:15:51]} {[%emt 00:02:29]} 19. cxb5 {[%clk 00:14:49]} {[%emt
00:00:34]} Nxb4 {[%clk 00:15:17]} {[%emt 00:00:41]} 20. Rxc7 {[%clk 00:14:52]}
Na2 {[%clk 00:14:36]} {[%emt 00:00:47]} 21. b6 {[%clk 00:14:22]} {[%emt
00:00:35]} Nc3 {[%clk 00:14:11]} {[%emt 00:00:30]} 22. Re1 {[%clk 00:13:27]}
{[%emt 00:00:59]} Nb5 {[%clk 00:14:01]} {[%emt 00:00:16]} 23. Rxe7 {[%clk
00:13:01]} {[%emt 00:00:31]} Bd4 {[%clk 00:12:39]} {[%emt 00:01:27]} 24. Bxd4
{[%clk 00:10:09]} {[%emt 00:02:57]} Nxd4 {[%clk 00:12:37]} {[%emt 00:00:06]} 25.
Rb1 {[%clk 00:09:44]} {[%emt 00:00:30]} Be6 {[%clk 00:11:52]} {[%emt 00:00:49]}
26. Kf1 {[%clk 00:08:35]} {[%emt 00:01:15]} d5 {[%clk 00:10:59]} {[%emt
00:00:58]} 27. e4 {[%clk 00:07:40]} {[%emt 00:01:00]} dxe4 {[%clk 00:10:41]}
{[%emt 00:00:23]} 28. Bxe4 {[%clk 00:07:34]} {[%emt 00:00:12]} Bf5 {[%clk
00:10:31]} {[%emt 00:00:15]} 29. b7 {[%clk 00:05:05]} {[%emt 00:02:34]} Bxe4
{[%clk 00:10:27]} {[%emt 00:00:09]} 30. Rxe4 {[%clk 00:04:49]} {[%emt
00:00:20]} Ne6 {[%clk 00:10:24]} {[%emt 00:00:08]} 31. Ra4 {[%clk 00:04:45]}
{[%emt 00:00:09]} Kg7 {[%emt 00:00:34]} 32. Ke2 {[%emt 00:00:13]} Rfe8 {[%clk
00:10:04]} 33. Kd2 {[%clk 00:04:30]} {[%emt 00:00:07]} Red8 {[%clk 00:09:54]}
{[%emt 00:00:16]} 34. Kc3 {[%clk 00:03:56]} {[%emt 00:00:38]} Nc5 {[%clk
00:09:50]} {[%emt 00:00:10]} 35. Rab4 {[%clk 00:03:48]} {[%emt 00:00:13]} Nxd3
{[%clk 00:09:42]} {[%emt 00:00:12]} 36. Rc4 {[%clk 00:03:22]} {[%emt 00:00:31]}
Ne5 {[%emt 00:00:16]} 37. Re4 {[%emt 00:01:20]} Nc6 {[%emt 00:00:18]} 38. Ra4
{[%emt 00:00:51]} Rd7 {[%clk 00:08:10]} {[%emt 00:00:02]} 39. Rxa6 {[%clk
00:02:01]} {[%emt 00:00:36]} Nd8 {[%emt 00:00:18]} 40. Ra8 {[%emt 00:01:33]}
Rbxb7 {[%clk 00:08:11]} 41. Rxb7 {[%clk 00:00:11]} {[%emt 00:00:18]} Nxb7
{[%clk 00:08:14]} 42. Kc4 {[%clk 00:00:06]} {[%emt 00:00:11]} Rd2 {[%clk
00:08:11]} {[%emt 00:00:09]} 0-1

[Event "Nové Hrady - Rapid A"]
[Site "Nové Hrady, Czech Republic"]
[Date "2023.08.12"]
[Round "6.7"]
[White "Rausch, Rudolf"]
[Black "Martinkovič, Adam"]
[Result "0-1"]
[TimeControl "2x20min+5s"]
[WhiteFideId "1639455"]
[BlackFideId "23728019"]
[WhiteElo "1861"]
[BlackElo "1808"]

1. d4 {[%clk 00:20:08]} {[%emt 00:00:02]} c5 {[%clk 00:20:08]} {[%emt
00:00:02]} 2. d5 {[%clk 00:20:09]} {[%emt 00:00:03]} e6 {[%clk 00:20:11]}
{[%emt 00:00:03]} 3. dxe6 {[%clk 00:20:07]} {[%emt 00:00:08]} fxe6 {[%clk
00:20:11]} {[%emt 00:00:05]} 4. Nc3 {[%clk 00:20:07]} {[%emt 00:00:05]} d5
{[%clk 00:20:05]} {[%emt 00:00:10]} 5. Nf3 {[%clk 00:19:55]} {[%emt 00:00:17]}
Nf6 {[%clk 00:20:03]} {[%emt 00:00:07]} 6. e3 {[%clk 00:19:49]} {[%emt
00:00:11]} Nc6 {[%clk 00:20:01]} {[%emt 00:00:07]} 7. Bb5 {[%clk 00:19:42]}
{[%emt 00:00:12]} Bd7 {[%clk 00:19:52]} {[%emt 00:00:14]} 8. O-O {[%clk
00:19:23]} {[%emt 00:00:25]} Bd6 {[%clk 00:19:46]} {[%emt 00:00:08]} 9. h3
{[%clk 00:17:48]} {[%emt 00:01:42]} O-O {[%clk 00:19:45]} {[%emt 00:00:06]} 10.
a3 {[%clk 00:17:01]} {[%emt 00:00:53]} a6 {[%clk 00:19:30]} {[%emt 00:00:19]}
11. Be2 {[%clk 00:17:01]} {[%emt 00:00:05]} Be8 {[%clk 00:19:08]} {[%emt
00:00:27]} 12. Nh2 {[%clk 00:16:45]} {[%emt 00:00:21]} Bg6 {[%clk 00:18:45]}
{[%emt 00:00:28]} 13. Ng4 {[%clk 00:16:44]} {[%emt 00:00:06]} b5 {[%clk
00:17:38]} {[%emt 00:01:12]} 14. Bd3 {[%clk 00:13:54]} {[%emt 00:02:55]} Bxd3
{[%clk 00:17:21]} {[%emt 00:00:21]} 15. cxd3 {[%clk 00:13:55]} {[%emt
00:00:04]} Qe7 {[%clk 00:16:25]} {[%emt 00:01:01]} 16. Rb1 {[%clk 00:11:35]}
{[%emt 00:02:25]} Nxg4 {[%clk 00:15:59]} {[%emt 00:00:31]} 17. Qxg4 {[%clk
00:11:36]} {[%emt 00:00:04]} Ne5 {[%clk 00:15:50]} {[%emt 00:00:13]} 18. Qd1
{[%clk 00:11:16]} {[%emt 00:00:27]} c4 {[%clk 00:14:54]} {[%emt 00:01:00]} 19.
d4 {[%clk 00:10:33]} {[%emt 00:00:49]} Nd3 {[%clk 00:13:44]} {[%emt 00:01:15]}
20. Ne2 {[%clk 00:10:10]} {[%emt 00:00:29]} Qh4 {[%clk 00:12:31]} {[%emt
00:01:16]} 21. f4 {[%clk 00:09:21]} {[%emt 00:00:55]} Rf6 {[%clk 00:11:29]}
{[%emt 00:01:07]} 22. Bd2 {[%clk 00:07:39]} {[%emt 00:01:47]} Raf8 {[%clk
00:10:23]} {[%emt 00:01:11]} 23. Be1 {[%clk 00:07:31]} {[%emt 00:00:12]} Qh6
{[%clk 00:09:23]} {[%emt 00:01:06]} 24. Rf3 {[%clk 00:07:11]} {[%emt 00:00:25]}
g5 {[%clk 00:08:29]} {[%emt 00:00:59]} 25. Rg3 {[%clk 00:06:59]} {[%emt
00:00:16]} Rg6 {[%clk 00:08:18]} {[%emt 00:00:16]} 26. Rxg5 {[%clk 00:03:35]}
{[%emt 00:03:30]} Rxg5 {[%clk 00:08:16]} {[%emt 00:00:08]} 27. fxg5 {[%clk
00:03:38]} {[%emt 00:00:02]} Qxg5 {[%clk 00:08:16]} {[%emt 00:00:05]} 28. Nf4
{[%clk 00:02:32]} {[%emt 00:01:10]} Nxf4 {[%clk 00:05:13]} {[%emt 00:03:07]} 29.
exf4 {[%clk 00:02:35]} {[%emt 00:00:02]} Bxf4 {[%clk 00:04:58]} {[%emt
00:00:20]} 30. Qg4 {[%clk 00:02:24]} {[%emt 00:00:17]} Qxg4 {[%clk 00:04:34]}
{[%emt 00:00:29]} 31. hxg4 {[%clk 00:02:28]} Be3+ {[%clk 00:04:37]} {[%emt
00:00:03]} 32. Kh2 {[%clk 00:02:23]} {[%emt 00:00:10]} Rf1 {[%clk 00:04:12]}
{[%emt 00:00:30]} 33. g3 {[%clk 00:01:16]} {[%emt 00:01:11]} Bf2 {[%clk
00:03:32]} {[%emt 00:00:46]} 0-1

[Event "Nové Hrady - Rapid A"]
[Site "Nové Hrady, Czech Republic"]
[Date "2023.08.12"]
[Round "6.8"]
[White "Slabý, Martin"]
[Black "Hokr, Matyáš"]
[Result "1/2-1/2"]
[TimeControl "2x20min+5s"]
[WhiteFideId "23713593"]
[BlackFideId "23734663"]
[WhiteElo "1309"]
[BlackElo "1228"]

1. g4 {[%clk 00:20:08]} {[%emt 00:00:03]} d5 {[%clk 00:20:09]} {[%emt
00:00:02]} 2. Bg2 {[%clk 00:20:09]} {[%emt 00:00:03]} Bxg4 {[%clk 00:20:11]}
{[%emt 00:00:03]} 3. c4 {[%clk 00:20:08]} {[%emt 00:00:06]} c6 {[%clk
00:20:10]} {[%emt 00:00:06]} 4. cxd5 {[%clk 00:19:08]} {[%emt 00:01:04]} cxd5
{[%clk 00:20:13]} {[%emt 00:00:03]} 5. Qb3 {[%clk 00:19:01]} {[%emt 00:00:12]}
Qc8 {[%clk 00:20:03]} {[%emt 00:00:15]} 6. Nc3 {[%clk 00:18:34]} {[%emt
00:00:31]} e6 {[%clk 00:20:05]} {[%emt 00:00:04]} 7. Qa4+ {[%clk 00:18:14]}
{[%emt 00:00:25]} Qc6 {[%clk 00:20:02]} {[%emt 00:00:09]} 8. Qxg4 {[%clk
00:18:04]} {[%emt 00:00:13]} Nf6 {[%clk 00:19:59]} {[%emt 00:00:09]} 9. Qf3
{[%clk 00:17:09]} {[%emt 00:00:58]} Nbd7 {[%clk 00:19:43]} {[%emt 00:00:23]} 10.
d4 {[%clk 00:15:17]} {[%emt 00:01:57]} Bb4 {[%clk 00:19:35]} {[%emt 00:00:14]}
11. Bg5 {[%clk 00:14:14]} {[%emt 00:01:07]} Ne4 {[%clk 00:19:22]} {[%emt
00:00:18]} 12. Bd2 {[%clk 00:13:18]} {[%emt 00:01:01]} Nxd2 {[%clk 00:19:09]}
{[%emt 00:00:17]} 13. Kxd2 {[%clk 00:13:02]} {[%emt 00:00:21]} Nf6 {[%clk
00:19:12]} {[%emt 00:00:03]} 14. a3 {[%clk 00:12:01]} {[%emt 00:01:06]} Ne4+
{[%clk 00:18:59]} {[%emt 00:00:18]} 15. Kc2 {[%clk 00:10:52]} {[%emt 00:01:14]}
Bxc3 {[%clk 00:18:48]} {[%emt 00:00:16]} 16. bxc3 {[%clk 00:10:16]} {[%emt
00:00:42]} Qa4+ {[%clk 00:18:31]} {[%emt 00:00:21]} 17. Kd3 {[%clk 00:09:30]}
{[%emt 00:00:51]} Qc4+ {[%clk 00:18:03]} {[%emt 00:00:33]} 18. Kc2 {[%clk
00:08:30]} {[%emt 00:01:05]} Qa4+ {[%clk 00:17:57]} {[%emt 00:00:11]} 19. Kd3
{[%clk 00:08:20]} {[%emt 00:00:15]} Qc4+ {[%clk 00:17:56]} {[%emt 00:00:07]} 20.
Kc2 {[%emt 00:00:26]} Rc8 {[%emt 00:01:19]} 21. Qd3 {[%emt 00:00:54]} Qa4+
{[%emt 00:00:19]} 22. Kb2 {[%emt 00:00:03]} Rxc3 {[%emt 00:00:07]} 23. Qxc3
{[%emt 00:00:15]} Nxc3 24. Kxc3 Qc4+ {[%emt 00:00:02]} 25. Kb2 {[%emt
00:00:17]} Qxd4+ {[%emt 00:00:02]} 26. Ka2 {[%emt 00:00:04]} 1/2-1/2

[Event "Nové Hrady - Rapid A"]
[Site "Nové Hrady, Czech Republic"]
[Date "2023.08.12"]
[Round "7.1"]
[White "Urban, Zdeněk"]
[Black "Půlpán, Jakub"]
[Result "1/2-1/2"]
[TimeControl "2x20min+5s"]
[WhiteFideId "312754"]
[BlackFideId "302759"]
[WhiteElo "2048"]
[BlackElo "2515"]

1. d4 {[%clk 00:20:09]} {[%emt 00:05:23]} Nf6 {[%clk 00:20:09]} 2. c4 {[%clk
00:20:12]} {[%emt 00:00:03]} e6 {[%clk 00:20:12]} {[%emt 00:00:02]} 3. Nc3
{[%clk 00:20:15]} Bb4 {[%clk 00:20:16]} {[%emt 00:00:02]} 4. Qc2 {[%clk
00:20:09]} {[%emt 00:00:11]} O-O {[%clk 00:20:10]} {[%emt 00:00:11]} 5. Bd2
{[%clk 00:19:40]} {[%emt 00:00:33]} c5 {[%clk 00:20:07]} {[%emt 00:00:09]} 6.
e3 {[%clk 00:19:06]} {[%emt 00:00:39]} d5 {[%clk 00:20:03]} {[%emt 00:00:10]} 7.
Nf3 {[%clk 00:19:02]} {[%emt 00:00:08]} cxd4 {[%clk 00:19:56]} {[%emt
00:00:11]} 8. Nxd4 {[%clk 00:18:58]} {[%emt 00:00:10]} e5 {[%clk 00:19:48]}
{[%emt 00:00:14]} 9. Nb3 {[%clk 00:18:38]} {[%emt 00:00:25]} d4 {[%clk
00:19:45]} {[%emt 00:00:07]} 10. Nd1 {[%clk 00:18:04]} {[%emt 00:00:38]} Nc6
{[%clk 00:19:39]} {[%emt 00:00:13]} 11. Bd3 {[%clk 00:17:41]} {[%emt 00:00:28]}
e4 {[%clk 00:19:17]} {[%emt 00:00:26]} 12. Bxe4 {[%clk 00:17:40]} {[%emt
00:00:05]} Bxd2+ {[%clk 00:17:42]} {[%emt 00:01:41]} 13. Nxd2 {[%clk 00:17:38]}
{[%emt 00:00:06]} Nb4 {[%clk 00:17:35]} {[%emt 00:00:13]} 14. Qb3 {[%clk
00:17:28]} {[%emt 00:00:15]} dxe3 {[%clk 00:17:05]} {[%emt 00:00:35]} 15. Nxe3
{[%clk 00:16:51]} {[%emt 00:00:42]} Nxe4 {[%clk 00:17:06]} {[%emt 00:00:04]} 16.
Nxe4 {[%clk 00:16:34]} {[%emt 00:00:22]} Nd3+ {[%clk 00:17:09]} {[%emt
00:00:03]} 17. Kf1 {[%clk 00:16:37]} Nf4 {[%clk 00:16:29]} {[%emt 00:00:46]} 18.
Rd1 {[%clk 00:16:29]} {[%emt 00:00:13]} Qe7 {[%clk 00:16:29]} {[%emt 00:00:05]}
19. f3 {[%clk 00:15:28]} {[%emt 00:01:05]} Be6 {[%clk 00:15:53]} {[%emt
00:00:42]} 1/2-1/2